fUST/lending_fUST_20250905
["ID","MTS","AMOUNT","RATE_DAILY","PERIOD"]
[383651171,1757071832466,-1045.9,0.00013698,2]
[383651172,1757071832475,-480.0,0.00013698,2]
[383651173,1757071832485,-480.0,0.00013698,2]
[383651174,1757071832494,-480.0,0.00013698,2]
[383651175,1757071832503,-480.0,0.00013698,2]
[383651176,1757071832512,-1991.22,0.00013698,2]
[383651177,1757071832522,-480.0,0.00013698,2]
[383651178,1757071832531,-480.0,0.00013698,2]
[383651179,1757071832541,-480.0,0.00013698,2]
[383651180,1757071832550,-480.0,0.00013698,2]
[383651181,1757071832559,-675.26,0.00013698,2]
[383651182,1757071832573,-2095.26,0.00013698,2]
[383651183,1757071832582,-982.0,0.00013698,2]
[383651184,1757071832591,-609.21,0.00013698,2]
[383651185,1757071832600,-27696.05,0.00013698,2]
[383651186,1757071832609,-480.0,0.00013698,2]
[383651187,1757071832619,-480.0,0.00013698,2]
[383651188,1757071832628,-480.0,0.00013698,2]
[383651189,1757071832638,-557.13,0.00013698,2]
[383651190,1757071832647,-515.22,0.00013698,2]
[383651191,1757071832658,-13.84351343,0.00013698,2]
[383651192,1757071832671,-538.65648657,0.00013698,2]
[383651193,1757071832680,-480.0,0.00013698,2]
[383651194,1757071832690,-148.28266361,0.00013698,2]
[383651195,1757071832701,-331.71733639,0.00013698,2]
[383651196,1757071832721,-480.0,0.00013698,2]
[383651197,1757071832731,-701.31,0.00013698,2]
[383651198,1757071832741,-480.0,0.00013698,2]
[383651199,1757071832751,-798.2,0.00013698,2]
[383651200,1757071832760,-480.0,0.00013698,2]
[383651201,1757071832770,-480.0,0.00013698,2]
[383651202,1757071832780,-942.97,0.00013698,2]
[383651203,1757071832790,-480.0,0.00013698,2]
[383651204,1757071832799,-391.34213602,0.00013698,2]
[383651205,1757071832817,-88.65786398,0.00013698,2]
[383651206,1757071832827,-525.35987309,0.00013698,2]
[383651207,1757071832839,-915.61012691,0.00013698,2]
[383651208,1757071832849,-500.0,0.00013698,2]
[383651209,1757071832859,-500.0,0.00013698,2]
[383651210,1757071832869,-377.72,0.00013698,2]
[383651211,1757071832879,-480.0,0.00013698,2]
[383651212,1757071832889,-203.45348583,0.00013698,2]
[383651213,1757071832901,-255.57243791,0.00013698,2]
[383651214,1757071832913,-983.96121195,0.00013698,2]
[383651215,1757071832924,-239.42286431,0.00013698,2]
[383651216,1757071832934,-480.0,0.00013698,2]
[383651217,1757071832945,-480.0,0.00013698,2]
[383651218,1757071832955,-480.0,0.00013698,2]
[383651219,1757071832965,-480.0,0.00013698,2]
[383651220,1757071832975,-871.09,0.00013698,2]
[383651221,1757071832984,-480.0,0.00013698,2]
[383651222,1757071832994,-480.0,0.00013698,2]
[383651223,1757071833004,-653.38,0.00013698,2]
[383651224,1757071833014,-480.0,0.00013698,2]
[383651225,1757071833025,-657.42,0.00013698,2]
[383651226,1757071833034,-1062.22,0.00013698,2]
[383651227,1757071833043,-500.0,0.00013698,2]
[383651228,1757071833053,-302.0,0.00013698,2]
[383651229,1757071833063,-480.0,0.00013698,2]
[383651230,1757071833073,-480.0,0.00013698,2]
[383651231,1757071833083,-500.0,0.00013698,2]
[383651232,1757071833093,-480.0,0.00013698,2]
[383651233,1757071833103,-497.0,0.00013698,2]
[383651234,1757071833112,-480.0,0.00013698,2]
[383651235,1757071833121,-480.0,0.00013698,2]
[383651236,1757071833131,-808.95,0.00013698,2]
[383651237,1757071833140,-480.0,0.00013698,2]
[383651238,1757071833150,-1194.76,0.00013698,2]
[383651239,1757071833159,-529.614643,0.00013699,2]
[383651240,1757071833169,-203.90478077,0.00013771,2]
[383651241,1757071833178,-203.90478073,0.00013807,2]
[383651242,1757071833187,-203.90478073,0.00013843,2]
[383651243,1757071833197,-178.84875723,0.00013871,2]
[383651244,1757071833207,-500.0,0.00013871,2]
[383651245,1757071833217,-500.0,0.00013871,2]
[383651246,1757071833227,-500.0,0.00013871,2]
[383651247,1757071833236,-500.0,0.00013871,2]
[383651248,1757071833245,-500.0,0.00013871,2]
[383651249,1757071833255,-257.49312486,0.00013871,2]
[383651250,1757071833264,-500.0,0.00013871,2]
[383651251,1757071833274,-282.1200672,0.00013871,2]
[383651252,1757071833284,-151.0,0.00013872,2]
[383651253,1757071833294,-151.0,0.00013872,2]
[383651254,1757071833303,-281.880652,0.00013872,2]
[383651255,1757071833313,-151.0,0.00013872,2]
[383651256,1757071833323,-151.0,0.00013872,2]
[383651257,1757071833334,-611.72926398,0.00013872,2]
[383651258,1757071833344,-175.230243,0.00013872,2]
[383651259,1757071833353,-151.0,0.00013872,2]
[383651260,1757071833363,-151.0,0.00013872,2]
[383651261,1757071833373,-151.0,0.00013872,2]
[383651262,1757071833383,-151.0,0.00013872,2]
[383651263,1757071833392,-175165.34499794,0.00013872,2]
[383651264,1757071833402,-500.0,0.00013873,2]
[383651265,1757071833412,-500.0,0.00013873,2]
[383651266,1757071833422,-166.50355607,0.00013873,2]
[383651267,1757071833435,-333.49644393,0.00013873,2]
[383651268,1757071833444,-500.0,0.00013873,2]
[383651269,1757071833454,-424.81967186,0.00013873,2]
[383651270,1757071833463,-500.0,0.00013873,2]
[383651271,1757071833473,-500.0,0.00013873,2]
[383651272,1757071833482,-500.0,0.00013873,2]
[383651273,1757071833492,-258.86054577,0.00013873,2]
[383651274,1757071833502,-203.90478073,0.00013878,2]
[383651275,1757071833511,-203.90478073,0.00013914,2]
[383651276,1757071833521,-300.0,0.00013971,2]
[383651277,1757071833531,-300.0,0.00013971,2]
[383651278,1757071833541,-300.0,0.00013971,2]
[383651279,1757071833551,-300.0,0.00013971,2]
[383651280,1757071833561,-300.0,0.00013971,2]
[383651281,1757071833575,-300.0,0.00013971,2]
[383651282,1757071833584,-300.0,0.00013971,2]
[383651283,1757071833594,-300.0,0.00013971,2]
[383651284,1757071833603,-300.0,0.00013971,2]
[383651285,1757071833612,-300.0,0.00013971,2]
[383651286,1757071833620,-300.0,0.00013971,2]
[383651287,1757071833629,-300.0,0.00013971,2]
[383651288,1757071833637,-300.0,0.00013971,2]
[383651289,1757071833647,-300.0,0.00013971,2]
[383651290,1757071833657,-300.0,0.00013971,2]
[383651291,1757071833667,-600.0,0.00013971,2]
[383651292,1757071833676,-500.0,0.00013971,2]
[383651293,1757071833686,-370.38972871,0.00013971,2]
[383651294,1757071833696,-500.0,0.00013971,2]
[383651295,1757071833705,-150.81568738,0.00013971,2]
[383651313,1757071837831,-480.0,0.00013698,2]
[383651315,1757071837840,-1111.27,0.00013698,2]
[383651317,1757071837849,-151.0,0.00013872,2]
[383651319,1757071837858,-349.18431262,0.00013971,2]
[383651321,1757071837867,-500.0,0.00013971,2]
[383651323,1757071837876,-500.0,0.00013971,2]
[383651325,1757071837884,-193.58100535,0.00013972,2]
[383651327,1757071837891,-189.00633365,0.00013972,2]
[383651329,1757071837902,-106.99366635,0.00013972,2]
[383651331,1757071837910,-296.0,0.00013972,2]
[383651334,1757071837919,-271.25881711,0.00013972,2]
[383651336,1757071837927,-533.25197816,0.00013972,2]
[383651338,1757071837935,-633.17876352,0.00013972,2]
[383651340,1757071837944,-500.0,0.00013972,2]
[383651341,1757071837953,-500.0,0.00013972,2]
[383651344,1757071837963,-500.0,0.00013972,2]
[383651345,1757071837973,-497.0,0.00013972,2]
[383651347,1757071837982,-480.0,0.00013972,2]
[383651350,1757071837992,-480.0,0.00013972,2]
[383651351,1757071838001,-480.0,0.00013972,2]
[383651353,1757071838010,-480.0,0.00013972,2]
[383651355,1757071838020,-480.0,0.00013972,2]
[383651357,1757071838029,-480.0,0.00013972,2]
[383651359,1757071838039,-569.96344997,0.00013972,2]
[383651361,1757071838048,-480.0,0.00013972,2]
[383651363,1757071838057,-151.0,0.00013972,2]
[383651365,1757071838066,-157.08269897,0.00013972,2]
[383651369,1757071838087,-322.91730103,0.00013972,2]
[383651371,1757071838096,-188.13927271,0.00013972,2]
[383651373,1757071838106,-480.0,0.00013972,2]
[383651375,1757071838115,-480.0,0.00013972,2]
[383651377,1757071838124,-480.0,0.00013972,2]
[383651379,1757071838133,-225.10129497,0.00013972,2]
[383651381,1757071838142,-9.57669114,0.00013972,2]
[383651596,1757071840154,-470.42330886,0.00013972,2]
[383651598,1757071840164,-480.0,0.00013972,2]
[383651600,1757071840174,-480.0,0.00013972,2]
[383651602,1757071840183,-480.0,0.00013972,2]
[383651604,1757071840192,-480.0,0.00013972,2]
[383651606,1757071840201,-480.0,0.00013972,2]
[383651608,1757071840210,-480.0,0.00013972,2]
[383651610,1757071840220,-480.0,0.00013972,2]
[383651612,1757071840230,-480.0,0.00013972,2]
[383651614,1757071840239,-480.0,0.00013972,2]
[383651616,1757071840248,-480.0,0.00013972,2]
[383651618,1757071840257,-151.0,0.00013972,2]
[383651620,1757071840270,-151.0,0.00013972,2]
[383651622,1757071840280,-480.0,0.00013972,2]
[383651624,1757071840289,-480.0,0.00013972,2]
[383651625,1757071840298,-480.0,0.00013972,2]
[383651628,1757071840308,-4628.72,0.00013972,2]
[383651629,1757071840317,-480.0,0.00013972,2]
[383651631,1757071840327,-480.0,0.00013972,2]
[383651633,1757071840336,-480.0,0.00013972,2]
[383651635,1757071840345,-480.0,0.00013972,2]
[383651637,1757071840355,-495.42,0.00013972,2]
[383651639,1757071840364,-652.77,0.00013972,2]
[383651641,1757071840373,-480.0,0.00013972,2]
[383651643,1757071840382,-1045.9,0.00013972,2]
[383651645,1757071840391,-480.0,0.00013972,2]
[383651647,1757071840401,-480.0,0.00013972,2]
[383651649,1757071840411,-480.0,0.00013972,2]
[383651651,1757071840420,-1448.46981227,0.00013972,2]
[383651896,1757071842956,-420.0,0.00013698,2]
[383653374,1757071887335,1000.0,0.00018595,20]
[383653376,1757071922958,262.26482708,0.0001356,2]
[383653384,1757072204232,-168.0,0.0001365,2]
[383653385,1757072241045,168.0,0.00013552,2]
[383653387,1757072249162,168.0,0.00013552,2]
[383653388,1757072257962,168.0,0.00013552,2]
[383653389,1757072268386,168.0,0.00013552,2]
[383653390,1757072277042,168.0,0.00013552,2]
[383653391,1757072286735,168.0,0.00013552,2]
[383653392,1757072295439,168.0,0.00013552,2]
[383653393,1757072304353,168.0,0.00013552,2]
[383653394,1757072312740,168.0,0.00013552,2]
[383653395,1757072320803,168.0,0.00013552,2]
[383653396,1757072330634,168.0,0.00013552,2]
[383653397,1757072332258,723.19292511,0.00013598,2]
[383653398,1757072339149,168.0,0.00013552,2]
[383653399,1757072347932,168.0,0.00013552,2]
[383653400,1757072356996,168.0,0.00013552,2]
[383653401,1757072366217,168.0,0.00013552,2]
[383653405,1757072375179,168.0,0.00013552,2]
[383653406,1757072383271,168.0,0.00013552,2]
[383653407,1757072392460,168.0,0.00013552,2]
[383653408,1757072400402,168.0,0.00013552,2]
[383653409,1757072409661,168.0,0.00013552,2]
[383653410,1757072418351,168.0,0.00013552,2]
[383653411,1757072426488,168.0,0.00013552,2]
[383653412,1757072435347,168.0,0.00013552,2]
[383653413,1757072444300,168.0,0.00013552,2]
[383653414,1757072453053,168.0,0.00013552,2]
[383653415,1757072461735,168.0,0.00013552,2]
[383653416,1757072470678,168.0,0.00013552,2]
[383653417,1757072479804,168.0,0.00013552,2]
[383653418,1757072490284,168.0,0.00013552,2]
[383653419,1757072498712,168.0,0.00013552,2]
[383653420,1757072507972,168.0,0.00013552,2]
[383653421,1757072517064,168.0,0.00013552,2]
[383653422,1757072525464,1204.84176818,0.00013598,2]
[383653423,1757072534217,1204.84176815,0.00013543,2]
[383653424,1757072542409,1204.84176815,0.00013543,2]
[383653425,1757072558312,1204.84176815,0.00013543,2]
[383653426,1757072566768,1204.84176815,0.00013543,2]
[383653427,1757072583262,742.3164637,0.00013543,2]
[383653428,1757072591512,1204.84176815,0.00013543,2]
[383653429,1757072615846,1204.84176815,0.00013543,2]
[383653430,1757072617832,632.79380948,0.00013598,2]
[383653431,1757072640328,1204.84176815,0.00013543,2]
[383653432,1757072665589,1204.84176815,0.00013543,2]
[383653433,1757072688986,1204.84176815,0.00013543,2]
[383653434,1757072711951,1204.84176815,0.00013543,2]
[383653435,1757072735862,1204.84176815,0.00013543,2]
[383653436,1757072759882,1204.84176815,0.00013543,2]
[383653437,1757072784109,1204.84176815,0.00013543,2]
[383653438,1757072807610,1204.84176815,0.00013543,2]
[383653439,1757072831902,168.0,0.00013528,2]
[383653441,1757072855121,168.0,0.00013528,2]
[383653442,1757072865747,963.87341452,0.00013598,2]
[383653443,1757072878928,168.0,0.00013528,2]
[383653444,1757072896768,400000.0,0.00029314,60]
[383653445,1757072897779,553.69458326,0.00013598,2]
[383653446,1757072905123,168.0,0.00013528,2]
[383653447,1757072929422,168.0,0.00013528,2]
[383653448,1757072952516,500.71825527,0.00025,30]
[383653449,1757072953044,168.0,0.00013528,2]
[383653555,1757072977907,5000.0,0.0001525,6]
[383653625,1757073001618,5000.0,0.0001525,6]
[383653626,1757073026061,168.0,0.00013528,2]
[383653671,1757073032177,-168.0,0.00013665,2]
[383653673,1757073032187,-832.0,0.00013686,2]
[383654237,1757073038022,-131.87341452,0.00013686,2]
[383654239,1757073038031,-168.0,0.00013689,2]
[383654241,1757073038041,-151.26585687,0.0001369,2]
[383654243,1757073038050,-1200.0,0.00013696,2]
[383654245,1757073038060,-300.0,0.00013696,2]
[383654247,1757073038070,-500.0,0.00013697,2]
[383654249,1757073038079,-500.0,0.00013697,2]
[383654251,1757073038089,-500.0,0.00013697,2]
[383654253,1757073038098,-500.0,0.00013697,2]
[383654255,1757073038108,-500.0,0.00013697,2]
[383654257,1757073038117,-500.0,0.00013697,2]
[383654259,1757073038127,-500.0,0.00013697,2]
[383654261,1757073038136,-500.0,0.00013697,2]
[383654262,1757073038146,-500.0,0.00013697,2]
[383654265,1757073038156,-500.0,0.00013697,2]
[383654267,1757073038166,-500.0,0.00013697,2]
[383654269,1757073038175,-500.0,0.00013697,2]
[383654271,1757073038184,-549.36445742,0.00013697,2]
[383654272,1757073038194,-500.0,0.00013697,2]
[383654274,1757073038203,-379.06114574,0.00013697,2]
[383654276,1757073038213,-500.0,0.00013697,2]
[383654278,1757073038223,-500.0,0.00013697,2]
[383654280,1757073038232,-500.0,0.00013697,2]
[383654282,1757073038241,-500.0,0.00013697,2]
[383654284,1757073038250,-459.91032164,0.00013697,2]
[383654286,1757073038259,-500.0,0.00013697,2]
[383654288,1757073038269,-227.70716193,0.00013697,2]
[383654290,1757073038279,-480.0,0.00013698,2]
[383654292,1757073038288,-480.0,0.00013698,2]
[383654293,1757073038297,-480.0,0.00013698,2]
[383654295,1757073038307,-387.83103387,0.00013698,2]
[383654297,1757073038316,-480.0,0.00013698,2]
[383654299,1757073038326,-480.0,0.00013698,2]
[383654301,1757073038335,-447.95581627,0.00013698,2]
[383654303,1757073038348,-32.04418373,0.00013698,2]
[383654305,1757073038357,-480.0,0.00013698,2]
[383654307,1757073038367,-494.86,0.00013698,2]
[383654309,1757073038376,-480.0,0.00013698,2]
[383654311,1757073038385,-480.0,0.00013698,2]
[383654313,1757073038394,-38.5106811,0.00013698,2]
[383654315,1757073038405,-441.4893189,0.00013698,2]
[383654317,1757073038414,-480.0,0.00013698,2]
[383654319,1757073038425,-480.0,0.00013698,2]
[383654321,1757073038435,-480.0,0.00013698,2]
[383654323,1757073038445,-480.0,0.00013698,2]
[383654325,1757073038454,-251.19380345,0.00013698,2]
[383654327,1757073038466,-230.36966317,0.00013698,2]
[383654329,1757073038475,-480.0,0.00013698,2]
[383654331,1757073038485,-480.0,0.00013698,2]
[383654333,1757073038494,-530.82,0.00013698,2]
[383654335,1757073038503,-480.0,0.00013698,2]
[383654336,1757073038513,-480.0,0.00013698,2]
[383654337,1757073038522,-89.01725805,0.00013698,2]
[383654338,1757073038542,-390.98274195,0.00013698,2]
[383654339,1757073038551,-480.0,0.00013698,2]
[383654340,1757073038560,-480.0,0.00013698,2]
[383654341,1757073038569,-480.0,0.00013698,2]
[383654342,1757073038578,-480.0,0.00013698,2]
[383654343,1757073038588,-480.0,0.00013698,2]
[383654344,1757073038598,-480.0,0.00013698,2]
[383654345,1757073038607,-480.0,0.00013698,2]
[383654346,1757073038617,-186.28,0.00013698,2]
[383654347,1757073038627,-480.0,0.00013698,2]
[383654348,1757073038637,-480.0,0.00013698,2]
[383654349,1757073038647,-480.0,0.00013698,2]
[383654350,1757073038659,-480.0,0.00013698,2]
[383654351,1757073038669,-480.0,0.00013698,2]
[383654352,1757073038679,-480.0,0.00013698,2]
[383654353,1757073038688,-480.0,0.00013698,2]
[383654354,1757073038698,-480.0,0.00013698,2]
[383654355,1757073038707,-480.0,0.00013698,2]
[383654356,1757073038717,-94.66634405,0.00013698,2]
[383654500,1757073040218,-385.33365595,0.00013698,2]
[383654502,1757073040227,-480.0,0.00013698,2]
[383654504,1757073040236,-480.0,0.00013698,2]
[383654506,1757073040246,-480.0,0.00013698,2]
[383654507,1757073040256,-480.0,0.00013698,2]
[383654508,1757073040265,-483.24849934,0.00013698,2]
[383654509,1757073040274,-480.0,0.00013698,2]
[383654510,1757073040284,-480.0,0.00013698,2]
[383654511,1757073040293,-480.0,0.00013698,2]
[383654512,1757073040302,-480.0,0.00013698,2]
[383654513,1757073040312,-480.0,0.00013698,2]
[383654514,1757073040321,-524.23,0.00013698,2]
[383654516,1757073040331,-480.0,0.00013698,2]
[383654518,1757073040340,-480.0,0.00013698,2]
[383654520,1757073040350,-480.0,0.00013698,2]
[383654521,1757073040359,-480.0,0.00013698,2]
[383654522,1757073040368,-480.0,0.00013698,2]
[383654523,1757073040378,-480.0,0.00013698,2]
[383654524,1757073040387,-480.0,0.00013698,2]
[383654525,1757073040396,-420.02041448,0.00013698,2]
[383654526,1757073040408,-62.00258133,0.00013698,2]
[383654527,1757073040418,-480.0,0.00013698,2]
[383654528,1757073040427,-480.0,0.00013698,2]
[383654530,1757073040436,-480.0,0.00013698,2]
[383654532,1757073040445,-480.0,0.00013698,2]
[383654534,1757073040455,-528.65,0.00013698,2]
[383654536,1757073040464,-480.0,0.00013698,2]
[383654538,1757073040472,-480.0,0.00013698,2]
[383654540,1757073040482,-480.0,0.00013698,2]
[383654542,1757073040491,-480.0,0.00013698,2]
[383654544,1757073040500,-480.0,0.00013698,2]
[383654546,1757073040509,-480.0,0.00013698,2]
[383654548,1757073040518,-480.0,0.00013698,2]
[383654550,1757073040527,-480.0,0.00013698,2]
[383654551,1757073040536,-480.0,0.00013698,2]
[383654553,1757073040546,-480.0,0.00013698,2]
[383654556,1757073040555,-480.0,0.00013698,2]
[383654557,1757073040565,-480.0,0.00013698,2]
[383654560,1757073040575,-480.0,0.00013698,2]
[383654561,1757073040584,-480.0,0.00013698,2]
[383654563,1757073040593,-293.37,0.00013698,2]
[383654565,1757073040602,-4243.0,0.00013698,2]
[383654568,1757073040611,-480.0,0.00013698,2]
[383654569,1757073040622,-480.0,0.00013698,2]
[383654572,1757073040633,-480.0,0.00013698,2]
[383654573,1757073040642,-480.0,0.00013698,2]
[383654575,1757073040651,-480.0,0.00013698,2]
[383654577,1757073040660,-480.0,0.00013698,2]
[383654579,1757073040671,-618.37,0.00013698,2]
[383654581,1757073040680,-480.0,0.00013698,2]
[383654583,1757073040690,-480.0,0.00013698,2]
[383654585,1757073040699,-480.0,0.00013698,2]
[383654588,1757073040709,-480.0,0.00013698,2]
[383654590,1757073040718,-480.0,0.00013698,2]
[383654591,1757073040727,-602.57,0.00013698,2]
[383654593,1757073040738,-480.0,0.00013698,2]
[383654595,1757073040747,-480.0,0.00013698,2]
[383654597,1757073040757,-480.0,0.00013698,2]
[383654599,1757073040768,-958.74,0.00013698,2]
[383654601,1757073040778,-1966.65,0.00013698,2]
[383654603,1757073040788,-480.0,0.00013698,2]
[383654606,1757073040797,-480.0,0.00013698,2]
[383654608,1757073040807,-480.0,0.00013698,2]
[383654610,1757073040817,-480.0,0.00013698,2]
[383654611,1757073040827,-2007.96,0.00013698,2]
[383654613,1757073040836,-482.12818552,0.00013698,2]
[383654615,1757073040845,-566.23,0.00013698,2]
[383654617,1757073040855,-480.0,0.00013698,2]
[383654619,1757073040864,-941.09,0.00013698,2]
[383654621,1757073040873,-480.0,0.00013698,2]
[383654623,1757073040882,-480.0,0.00013698,2]
[383654625,1757073040892,-583.82,0.00013698,2]
[383654628,1757073040901,-1628.13899302,0.00013698,2]
[383654630,1757073040915,-843.63590484,0.00013698,2]
[383655128,1757073051959,10946.44536812,0.00013561,2]
[383655129,1757073178063,484.48276037,0.00013598,2]
[383655130,1757073204190,829.96103393,0.00013598,2]
[383655131,1757073219762,168.0,0.00013618,2]
[383655132,1757073235763,168.0,0.00013601,2]
[383655134,1757073458323,423.92241528,0.00013598,2]
[383655139,1757073544454,663.96882712,0.00013598,2]
[383655140,1757073632737,326.89716561,0.00029312,60]
[383655141,1757073739196,370.93211337,0.00013598,2]
[383655142,1757073884724,531.17506172,0.00013598,2]
[383655151,1757074020224,324.56559926,0.00013598,2]
[383655152,1757074225218,424.94004936,0.00013598,2]
[383655193,1757074232306,-383.488,0.00013677,2]
[383655200,1757074232360,-41.45204935,0.00013677,2]
[383655202,1757074232370,-391.81528133,0.00013696,2]
[383655204,1757074232381,-108.18471867,0.00013696,2]
[383655207,1757074232392,-300.0,0.00013696,2]
[383655210,1757074232402,-300.0,0.00013696,2]
[383655213,1757074232411,-1200.0,0.00013696,2]
[383655216,1757074232421,-253.00795771,0.00013697,2]
[383655218,1757074232431,-558.05137986,0.00013697,2]
[383655220,1757074232440,-198.0133408,0.00013697,2]
[383655223,1757074232449,-438.63340366,0.00013697,2]
[383655469,1757074238164,-61.36659634,0.00013697,2]
[383655471,1757074238174,-500.0,0.00013697,2]
[383655473,1757074238184,-500.0,0.00013697,2]
[383655475,1757074238194,-500.0,0.00013697,2]
[383655477,1757074238203,-193.99468785,0.00013697,2]
[383655479,1757074238212,-480.0,0.00013698,2]
[383655481,1757074238221,-480.0,0.00013698,2]
[383655483,1757074238231,-480.0,0.00013698,2]
[383655485,1757074238240,-480.0,0.00013698,2]
[383655487,1757074238249,-1285.2253664,0.00013698,2]
[383655489,1757074238259,-480.0,0.00013698,2]
[383655491,1757074238268,-480.0,0.00013698,2]
[383655493,1757074238277,-480.0,0.00013698,2]
[383655495,1757074238286,-537.39,0.00013698,2]
[383655497,1757074238296,-480.0,0.00013698,2]
[383655499,1757074238305,-480.0,0.00013698,2]
[383655501,1757074238314,-480.0,0.00013698,2]
[383655503,1757074238324,-382.01,0.00013698,2]
[383655505,1757074238333,-480.0,0.00013698,2]
[383655507,1757074238343,-480.0,0.00013698,2]
[383655509,1757074238352,-480.0,0.00013698,2]
[383655511,1757074238361,-480.0,0.00013698,2]
[383655513,1757074238375,-480.0,0.00013698,2]
[383655515,1757074238384,-480.0,0.00013698,2]
[383655517,1757074238394,-480.0,0.00013698,2]
[383655519,1757074238403,-611.75296958,0.00013698,2]
[383655521,1757074238412,-480.0,0.00013698,2]
[383655523,1757074238422,-480.0,0.00013698,2]
[383655525,1757074238431,-22017.08385181,0.00013698,2]
[383655528,1757074238449,-358.33781358,0.00013698,2]
[383655890,1757074243613,-327.0214455,0.00013698,2]
[383655892,1757074243625,-607.59921339,0.00013698,2]
[383656147,1757074246591,-30764.46812173,0.00013698,2]
[383656549,1757074300487,283.9948993,0.00013598,2]
[383656569,1757074563550,2281.80985367,0.00013598,2]
[383656570,1757074567628,22303.91017661,0.00013598,2]
[383656571,1757074585772,248.49553694,0.00013598,2]
[383656573,1757074731215,9968.8985866,0.00013598,2]
[383656574,1757074731245,15541.70496506,0.00013598,2]
[383656575,1757074808492,151.0,0.00013173,2]
[383656576,1757074809348,199.92988869,0.00013173,2]
[383656577,1757074903896,1825.44788296,0.00013598,2]
[383656587,1757074992657,639.13096406,0.00013598,2]
[383656588,1757075036017,217.43359477,0.00013597,2]
[383656593,1757075244842,7301.79153168,0.00013598,2]
[383656595,1757075262874,426.08730938,0.00013598,2]
[383656607,1757075431488,190.25439545,0.00013597,2]
[383656668,1757075432623,-479.0,0.00013688,2]
[383656670,1757075432633,-300.0,0.00013688,2]
[383656672,1757075432643,-300.0,0.00013688,2]
[383656674,1757075432653,-300.0,0.00013688,2]
[383656676,1757075432663,-300.0,0.00013688,2]
[383656678,1757075432672,-1200.0,0.00013688,2]
[383656680,1757075432686,-300.0,0.00013688,2]
[383656682,1757075432696,-250.0,0.0001369,2]
[383656684,1757075432705,-151.0,0.0001369,2]
[383656685,1757075432715,-181.08010149,0.0001369,2]
[383656687,1757075432724,-151.0,0.0001369,2]
[383656689,1757075432734,-250.0,0.0001369,2]
[383656691,1757075432745,-151.0,0.0001369,2]
[383656693,1757075432755,-151.0,0.0001369,2]
[383656695,1757075432765,-250.0,0.0001369,2]
[383656697,1757075432775,-151.0,0.0001369,2]
[383656699,1757075432784,-151.0,0.0001369,2]
[383656701,1757075432794,-250.0,0.0001369,2]
[383656703,1757075432803,-151.0,0.0001369,2]
[383656705,1757075432812,-250.0,0.0001369,2]
[383656708,1757075432822,-151.0,0.0001369,2]
[383656710,1757075432830,-250.0,0.0001369,2]
[383656713,1757075432840,-151.0,0.0001369,2]
[383656715,1757075432850,-151.0,0.0001369,2]
[383656717,1757075432859,-250.0,0.0001369,2]
[383656719,1757075432869,-151.0,0.0001369,2]
[383656721,1757075432878,-151.0,0.0001369,2]